fUSD/lending_fUSD_20240712
["ID","MTS","AMOUNT","RATE_DAILY","PERIOD"]
[331795134,1720765893386,-535.3,0.00013917,2]
[331795135,1720765893396,-500.0,0.00013917,2]
[331795136,1720765893406,-500.0,0.00013917,2]
[331795137,1720765893416,-533.99,0.00013917,2]
[331795138,1720765893426,-500.0,0.00013917,2]
[331795139,1720765893438,-500.0,0.00013917,2]
[331795140,1720765893448,-500.0,0.00013917,2]
[331795141,1720765893460,-500.0,0.00013917,2]
[331795142,1720765893469,-500.0,0.00013917,2]
[331795143,1720765893479,-500.0,0.00013917,2]
[331795144,1720765893489,-691.79,0.00013917,2]
[331795145,1720765893504,-500.0,0.00013917,2]
[331795146,1720765893514,-749.0,0.00013917,2]
[331795147,1720765893524,-646.61,0.00013917,2]
[331795148,1720765893534,-1153.39,0.00013917,2]
[331795149,1720765893545,-828.98,0.00013917,2]
[331795150,1720765893555,-500.0,0.00013917,2]
[331795151,1720765893565,-500.0,0.00013917,2]
[331795152,1720765893576,-188.748856,0.00013917,2]
[331795153,1720765893586,-160.427688,0.00013917,2]
[331795154,1720765893595,-500.0,0.00013917,2]
[331795155,1720765893605,-500.0,0.00013917,2]
[331795156,1720765893614,-797.92,0.00013917,2]
[331795157,1720765893624,-188.748856,0.00013917,2]
[331795158,1720765893634,-678.2,0.00013917,2]
[331795159,1720765893643,-500.0,0.00013917,2]
[331795160,1720765893653,-500.0,0.00013917,2]
[331795161,1720765893663,-500.0,0.00013917,2]
[331795162,1720765893672,-500.0,0.00013917,2]
[331795163,1720765893683,-500.0,0.00013917,2]
[331795164,1720765893693,-742.09,0.00013917,2]
[331795165,1720765893704,-925.55,0.00013917,2]
[331795166,1720765893714,-718.26,0.00013917,2]
[331795167,1720765893724,-289.26358119,0.00013917,2]
[331795168,1720765893733,-581.8,0.00013917,2]
[331795169,1720765893743,-660.22,0.00013917,2]
[331795170,1720765893753,-500.0,0.00013917,2]
[331795171,1720765893763,-685.66,0.00013917,2]
[331795172,1720765893772,-500.0,0.00013917,2]
[331795173,1720765893782,-616.92,0.00013917,2]
[331795174,1720765893792,-500.0,0.00013917,2]
[331795175,1720765893802,-477.35839841,0.00013917,2]
[331795176,1720765893816,-626.69,0.00013917,2]
[331795177,1720765893827,-578.66,0.00013917,2]
[331795178,1720765893837,-500.0,0.00013917,2]
[331795179,1720765893847,-458.98172093,0.00013917,2]
[331795180,1720765893858,-1182.27,0.00013917,2]
[331795181,1720765893869,-751.88,0.00013917,2]
[331795182,1720765893879,-500.0,0.00013917,2]
[331795183,1720765893889,-788.87,0.00013917,2]
[331795184,1720765893900,-589.96,0.00013917,2]
[331795185,1720765893910,-500.0,0.00013917,2]
[331795186,1720765893921,-1518.85,0.00013917,2]
[331795187,1720765893933,-500.0,0.00013917,2]
[331795188,1720765893945,-500.0,0.00013917,2]
[331795189,1720765893955,-863.12,0.00013917,2]
[331795190,1720765893966,-275.2550807,0.00013917,2]
[331795191,1720765893977,-765.3,0.00013917,2]
[331795192,1720765893987,-1173.86,0.00013917,2]
[331795193,1720765893997,-500.0,0.00013917,2]
[331795194,1720765894008,-714.93,0.00013917,2]
[331795195,1720765894019,-500.0,0.00013917,2]
[331795196,1720765894030,-284.328778,0.00013917,2]
[331795197,1720765894040,-500.0,0.00013917,2]
[331795198,1720765894050,-284.328778,0.00013917,2]
[331795199,1720765894061,-500.0,0.00013917,2]
[331795200,1720765894070,-500.0,0.00013917,2]
[331795201,1720765894080,-889.91,0.00013917,2]
[331795202,1720765894090,-500.0,0.00013917,2]
[331795203,1720765894100,-797.27,0.00013917,2]
[331795204,1720765894110,-500.0,0.00013917,2]
[331795205,1720765894120,-500.0,0.00013917,2]
[331795206,1720765894130,-508.63,0.00013917,2]
[331795207,1720765894140,-500.0,0.00013917,2]
[331795208,1720765894150,-1002.89,0.00013917,2]
[331795209,1720765894160,-512.8,0.00013917,2]
[331795210,1720765894171,-905.0,0.00013917,2]
[331795211,1720765894182,-151.0,0.00013917,2]
[331795212,1720765894192,-500.0,0.00013917,2]
[331795213,1720765894202,-151.0,0.00013917,2]
[331795214,1720765894212,-266.49409301,0.00013917,2]
[331795215,1720765894223,-500.0,0.00013917,2]
[331795216,1720765894233,-500.0,0.00013917,2]
[331795217,1720765894244,-500.0,0.00013917,2]
[331795218,1720765894254,-504.61,0.00013917,2]
[331795219,1720765894265,-414.949094,0.00013917,2]
[331795220,1720765894275,-414.949094,0.00013917,2]
[331795221,1720765894285,-500.0,0.00013917,2]
[331795222,1720765894295,-998.09,0.00013917,2]
[331795223,1720765894305,-472.920244,0.00013917,2]
[331795224,1720765894315,-472.920244,0.00013917,2]
[331795225,1720765894326,-414.949094,0.00013917,2]
[331795226,1720765894336,-414.949094,0.00013917,2]
[331795227,1720765894346,-1181.8,0.00013917,2]
[331795228,1720765894356,-472.920244,0.00013917,2]
[331795229,1720765894366,-472.920244,0.00013917,2]
[331795230,1720765894376,-500.0,0.00013917,2]
[331795231,1720765894386,-1111.86,0.00013917,2]
[331795232,1720765894396,-1692.88,0.00013917,2]
[331795233,1720765894406,-579.29999117,0.00013917,2]
[331795234,1720765894416,-500.0,0.00013917,2]
[331795235,1720765894427,-500.0,0.00013917,2]
[331795236,1720765894438,-806.67,0.00013917,2]
[331795237,1720765894447,-151.0,0.00013917,2]
[331795238,1720765894457,-151.0,0.00013917,2]
[331795239,1720765894466,-1115.55,0.00013917,2]
[331795240,1720765894476,-500.0,0.00013917,2]
[331795241,1720765894486,-1152.37,0.00013917,2]
[331795242,1720765894496,-500.0,0.00013917,2]
[331795243,1720765894509,-500.0,0.00013917,2]
[331795244,1720765894519,-1099.21,0.00013917,2]
[331795245,1720765894529,-500.0,0.00013917,2]
[331795246,1720765894539,-500.0,0.00013917,2]
[331795247,1720765894550,-500.0,0.00013917,2]
[331795248,1720765894560,-500.0,0.00013917,2]
[331795249,1720765894569,-500.0,0.00013917,2]
[331795250,1720765894581,-500.0,0.00013917,2]
[331795251,1720765894591,-958.58,0.00013917,2]
[331795252,1720765894601,-500.0,0.00013917,2]
[331795253,1720765894610,-1435.54,0.00013917,2]
[331795254,1720765894620,-500.0,0.00013917,2]
[331795255,1720765894630,-500.0,0.00013917,2]
[331795256,1720765894639,-933.39,0.00013917,2]
[331795257,1720765894649,-550.17932197,0.00013917,2]
[331795258,1720765894659,-885.22,0.00013917,2]
[331795259,1720765894668,-500.0,0.00013917,2]
[331795260,1720765894678,-525.55,0.00013917,2]
[331795261,1720765894689,-151.0,0.00013917,2]
[331795262,1720765894699,-151.0,0.00013917,2]
[331795263,1720765894709,-578.47,0.00013917,2]
[331795264,1720765894719,-500.0,0.00013917,2]
[331795265,1720765894730,-585.1,0.00013917,2]
[331795266,1720765894739,-768.43,0.00013917,2]
[331795267,1720765894749,-500.0,0.00013917,2]
[331795268,1720765894759,-1131.03,0.00013917,2]
[331795269,1720765894768,-500.66,0.00013917,2]
[331795270,1720765894778,-500.0,0.00013917,2]
[331795271,1720765894788,-1387.16,0.00013917,2]
[331795272,1720765894797,-272.58,0.00013917,2]
[331795273,1720765894807,-769.71,0.00013917,2]
[331795274,1720765894817,-929.61,0.00013917,2]
[331795275,1720765894827,-592.67,0.00013917,2]
[331795276,1720765894837,-500.0,0.00013917,2]
[331795277,1720765894848,-500.0,0.00013917,2]
[331795278,1720765894858,-1164.92,0.00013917,2]
[331795279,1720765894869,-1195.55,0.00013917,2]
[331795280,1720765894880,-372.988082,0.00013917,2]
[331795281,1720765894890,-372.988082,0.00013917,2]
[331795282,1720765894900,-500.0,0.00013917,2]
[331795283,1720765894910,-372.988082,0.00013917,2]
[331795284,1720765894921,-372.988082,0.00013917,2]
[331795285,1720765894932,-500.0,0.00013917,2]
[331795286,1720765894942,-832.05,0.00013917,2]
[331795287,1720765894953,-1157.39,0.00013917,2]
[331795288,1720765894964,-965.25,0.00013917,2]
[331795289,1720765894974,-1057.96,0.00013917,2]
[331795290,1720765894984,-500.0,0.00013917,2]
[331795291,1720765894994,-500.0,0.00013917,2]
[331795292,1720765895004,-500.0,0.00013917,2]
[331795293,1720765895014,-500.0,0.00013917,2]
[331795294,1720765895024,-151.0,0.00013917,2]
[331795295,1720765895035,-663.73,0.00013917,2]
[331795296,1720765895045,-151.0,0.00013917,2]
[331795297,1720765895055,-996.83,0.00013917,2]
[331795298,1720765895065,-778.42,0.00013917,2]
[331795299,1720765895074,-500.94,0.00013917,2]
[331795300,1720765895084,-500.0,0.00013917,2]
[331795301,1720765895095,-500.0,0.00013917,2]
[331795302,1720765895106,-1011.24,0.00013917,2]
[331795303,1720765895116,-500.0,0.00013917,2]
[331795304,1720765895126,-500.0,0.00013917,2]
[331795305,1720765895136,-724.27,0.00013917,2]
[331795306,1720765895146,-477.84,0.00013917,2]
[331795307,1720765895156,-500.0,0.00013917,2]
[331795308,1720765895166,-948.7,0.00013917,2]
[331795309,1720765895176,-1338.17,0.00013917,2]
[331795310,1720765895187,-500.0,0.00013917,2]
[331795311,1720765895198,-894.67,0.00013917,2]
[331795312,1720765895208,-500.0,0.00013917,2]
[331795313,1720765895218,-500.0,0.00013917,2]
[331795314,1720765895228,-691.16,0.00013917,2]
[331795315,1720765895238,-706.91,0.00013917,2]
[331795316,1720765895248,-500.0,0.00013917,2]
[331795317,1720765895258,-500.0,0.00013917,2]
[331795318,1720765895267,-1648.59,0.00013917,2]
[331795319,1720765895277,-579.34,0.00013917,2]
[331795320,1720765895286,-500.0,0.00013917,2]
[331795321,1720765895296,-210.966587,0.00013917,2]
[331795322,1720765895305,-174.61282,0.00013917,2]
[331795323,1720765895315,-534.75,0.00013917,2]
[331795324,1720765895325,-210.966587,0.00013917,2]
[331795325,1720765895334,-6673.84,0.00013917,2]
[331795326,1720765895344,-500.0,0.00013917,2]
[331795327,1720765895355,-791.66,0.00013917,2]
[331795328,1720765895366,-868.6,0.00013917,2]
[331795329,1720765895379,-503.87,0.00013917,2]
[331795330,1720765895391,-500.0,0.00013917,2]
[331795331,1720765895401,-500.0,0.00013917,2]
[331795332,1720765895412,-500.0,0.00013917,2]
[331795333,1720765895423,-500.0,0.00013917,2]
[331795334,1720765895434,-1463.05,0.00013917,2]
[331795335,1720765895444,-500.0,0.00013917,2]
[331795336,1720765895455,-1711.11,0.00013917,2]
[331795337,1720765895465,-776.49,0.00013917,2]
[331795338,1720765895475,-500.0,0.00013917,2]
[331795339,1720765895484,-940.12,0.00013917,2]
[331795340,1720765895494,-500.0,0.00013917,2]
[331795341,1720765895509,-500.0,0.00013917,2]
[331795342,1720765895519,-500.0,0.00013917,2]
[331795343,1720765895529,-1103.87,0.00013917,2]
[331795344,1720765895538,-838.82,0.00013917,2]
[331795345,1720765895548,-500.0,0.00013917,2]
[331795346,1720765895558,-906.68,0.00013917,2]
[331795347,1720765895570,-774.99,0.00013917,2]
[331795348,1720765895582,-500.0,0.00013917,2]
[331795349,1720765895593,-1574.49,0.00013917,2]
[331795350,1720765895603,-1003.46,0.00013917,2]
[331795351,1720765895613,-715.19,0.00013917,2]
[331795352,1720765895624,-2671.99,0.00013917,2]
[331795353,1720765895635,-500.0,0.00013917,2]
[331795354,1720765895730,-811.17,0.00013917,2]
[331795355,1720765895740,-163.218332,0.00013917,2]
[331795356,1720765895750,-1169.16,0.00013917,2]
[331795357,1720765895759,-804.64,0.00013917,2]
[331795358,1720765895769,-516.06,0.00013917,2]
[331795359,1720765895779,-500.0,0.00013917,2]
[331795360,1720765895790,-500.0,0.00013917,2]
[331795361,1720765895800,-913.43,0.00013917,2]
[331795362,1720765895809,-1567.42,0.00013917,2]
[331795363,1720765895819,-1123.97,0.00013917,2]
[331795364,1720765895828,-1159.17,0.00013917,2]
[331795365,1720765895837,-7796.51,0.00013917,2]
[331795366,1720765895848,-682.47,0.00013917,2]
[331795367,1720765895861,-3427.86,0.00013917,2]
[331795368,1720765895871,-884.1,0.00013917,2]
[331795369,1720765895881,-761.42,0.00013917,2]
[331795370,1720765895891,-500.0,0.00013917,2]
[331795371,1720765895902,-500.0,0.00013917,2]
[331795372,1720765895911,-500.0,0.00013917,2]
[331795373,1720765895921,-569.72051727,0.00013917,2]
[331795374,1720765895931,-500.0,0.00013917,2]
[331795375,1720765895941,-2349.61,0.00013917,2]
[331795376,1720765895951,-2824.19,0.00013917,2]
[331795377,1720765895962,-544.06,0.00013917,2]
[331795378,1720765895971,-1413.14,0.00013917,2]
[331795379,1720765895981,-500.0,0.00013917,2]
[331795380,1720765895990,-500.0,0.00013917,2]
[331795381,1720765896000,-500.0,0.00013917,2]
[331795382,1720765896010,-746.16,0.00013917,2]
[331795383,1720765896019,-1040.64,0.00013917,2]
[331795384,1720765896030,-500.0,0.00013917,2]
[331795385,1720765896039,-568.05,0.00013917,2]
[331795386,1720765896050,-1225.06,0.00013917,2]
[331795387,1720765896061,-500.0,0.00013917,2]
[331795388,1720765896071,-945.48,0.00013917,2]
[331795389,1720765896080,-502.01,0.00013917,2]
[331795390,1720765896090,-3411.217035,0.00013917,2]
[331795391,1720765896099,-1864.03,0.00013917,2]
[331795392,1720765896110,-500.0,0.00013917,2]
[331795393,1720765896119,-782.62,0.00013917,2]
[331795394,1720765896129,-3139.48,0.00013917,2]
[331795395,1720765896139,-3411.217027,0.00013917,2]
[331795396,1720765896150,-760.77,0.00013917,2]
[331795397,1720765896161,-967.92,0.00013917,2]
[331795398,1720765896172,-226.721676,0.00013917,2]
[331795399,1720765896182,-817.59,0.00013917,2]
[331795400,1720765896192,-500.0,0.00013917,2]
[331795401,1720765896201,-672.02,0.00013917,2]
[331795402,1720765896210,-503.52,0.00013917,2]
[331795403,1720765896221,-500.0,0.00013917,2]
[331795404,1720765896231,-500.0,0.00013917,2]
[331795405,1720765896243,-927.94,0.00013917,2]
[331795406,1720765896254,-1369.87,0.00013917,2]
[331795407,1720765896263,-544.15,0.00013917,2]
[331795408,1720765896273,-500.0,0.00013917,2]
[331795409,1720765896284,-500.0,0.00013917,2]
[331795410,1720765896295,-500.0,0.00013917,2]
[331795411,1720765896304,-510.11,0.00013917,2]
[331795412,1720765896314,-883.29,0.00013917,2]
[331795413,1720765896324,-500.0,0.00013917,2]
[331795414,1720765896336,-500.0,0.00013917,2]
[331795415,1720765896346,-703.12,0.00013917,2]
[331795416,1720765896358,-1249.82,0.00013917,2]
[331795417,1720765896369,-698.85,0.00013917,2]
[331795418,1720765896381,-513.61,0.00013917,2]
[331795419,1720765896390,-500.0,0.00013917,2]
[331795420,1720765896401,-500.0,0.00013917,2]
[331795421,1720765896411,-500.0,0.00013917,2]
[331795422,1720765896424,-3390.01,0.00013917,2]
[331795423,1720765896435,-214.158926,0.00013917,2]
[331795424,1720765896444,-522.91,0.00013917,2]
[331795425,1720765896456,-977.7,0.00013917,2]
[331795426,1720765896469,-500.0,0.00013917,2]
[331795427,1720765896479,-641.99,0.00013917,2]
[331795428,1720765896489,-309.72,0.00013917,2]
[331795429,1720765896503,-214.158926,0.00013917,2]
[331795430,1720765896514,-853.13,0.00013917,2]
[331795431,1720765896523,-760.44,0.00013917,2]
[331795432,1720765896534,-534.54,0.00013917,2]
[331795433,1720765896546,-486.38,0.00013917,2]
[331795434,1720765896557,-500.0,0.00013917,2]
[331795435,1720765896567,-789.27,0.00013917,2]
[331795436,1720765896578,-1308.59,0.00013917,2]
[331795437,1720765896588,-158.92801915,0.00013918,2]
[331795438,1720765896598,-203.0,0.0001392,2]
[331795439,1720765896607,-323.86948513,0.00013965,2]
[331795440,1720765896617,-151.0,0.00013971,2]
[331795441,1720765896627,-151.0,0.00013971,2]
[331795442,1720765896636,-151.0,0.00013971,2]
[331795443,1720765896646,-151.0,0.00013971,2]
[331795444,1720765896655,-151.0,0.00013971,2]
[331795445,1720765896667,-151.0,0.00013971,2]
[331795446,1720765896678,-151.0,0.00013971,2]
[331795447,1720765896690,-151.0,0.00013971,2]
[331795448,1720765896699,-151.0,0.00013971,2]
[331795449,1720765896709,-500.0,0.00013971,2]
[331795450,1720765896719,-500.0,0.00013971,2]
[331795451,1720765896730,-500.0,0.00013971,2]
[331795452,1720765896740,-500.0,0.00013971,2]
[331795453,1720765896750,-164.270083,0.00013972,2]
[331795454,1720765896759,-500.0,0.00013972,2]
[331795455,1720765896769,-500.0,0.00013972,2]
[331795456,1720765896778,-500.0,0.00013972,2]
[331795457,1720765896787,-500.0,0.00013972,2]
[331795458,1720765896797,-500.0,0.00013972,2]
[331795459,1720765896806,-151.0,0.00013972,2]
[331795460,1720765896815,-500.0,0.00013972,2]
[331795461,1720765896825,-500.0,0.00013972,2]
[331795462,1720765896834,-500.0,0.00013972,2]
[331795463,1720765896843,-600.13,0.00013972,2]
[331795464,1720765896853,-500.0,0.00013972,2]
[331795465,1720765896862,-151.0,0.00013972,2]
[331795466,1720765896872,-533.46,0.00013972,2]
[331795467,1720765896881,-151.0,0.00013972,2]
[331795468,1720765896891,-210.184202,0.00013972,2]
[331795469,1720765896900,-500.0,0.00013972,2]
[331795470,1720765896909,-500.0,0.00013972,2]
[331795471,1720765896919,-500.0,0.00013972,2]
[331795472,1720765896928,-500.0,0.00013972,2]
[331795473,1720765896940,-151.0,0.00013972,2]
[331795474,1720765896951,-151.0,0.00013972,2]
[331795475,1720765896963,-547.29,0.00013972,2]
[331795476,1720765896972,-527.94,0.00013972,2]
[331795477,1720765896981,-151.0,0.00013972,2]
[331795478,1720765896991,-430.80695428,0.00013972,2]
[331795479,1720765897001,-151.0,0.00013972,2]
[331795480,1720765897010,-218.467657,0.00013972,2]
[331795481,1720765897019,-500.0,0.00013972,2]
[331795482,1720765897029,-500.0,0.00013972,2]
[331795483,1720765897038,-829.62,0.00013972,2]
[331795484,1720765897047,-678.42,0.00013972,2]
[331795485,1720765897057,-500.0,0.00013972,2]
[331795486,1720765897066,-500.0,0.00013972,2]
[331795487,1720765897076,-500.0,0.00013972,2]
[331795488,1720765897086,-1078.13,0.00013972,2]
[331795489,1720765897095,-500.0,0.00013972,2]
[331795490,1720765897105,-500.0,0.00013972,2]
[331795491,1720765897114,-500.0,0.00013972,2]
[331795492,1720765897124,-599.97,0.00013972,2]
[331795493,1720765897134,-572.91,0.00013972,2]
[331795494,1720765897143,-500.0,0.00013972,2]
[331795495,1720765897152,-500.0,0.00013972,2]
[331795496,1720765897162,-500.0,0.00013972,2]
[331795497,1720765897171,-500.0,0.00013972,2]
[331795498,1720765897181,-151.0,0.00013972,2]
[331795499,1720765897192,-500.0,0.00013972,2]
[331795500,1720765897201,-541.87,0.00013972,2]
[331795501,1720765897210,-561.01,0.00013972,2]
[331795502,1720765897220,-151.0,0.00013972,2]
[331795503,1720765897229,-500.0,0.00013972,2]
[331795504,1720765897238,-526.37,0.00013972,2]
[331795505,1720765897248,-500.0,0.00013972,2]
[331795506,1720765897258,-500.0,0.00013972,2]
[331795507,1720765897267,-500.0,0.00013972,2]
[331795508,1720765897277,-500.0,0.00013972,2]
[331795509,1720765897286,-658.35,0.00013972,2]
[331795510,1720765897295,-500.0,0.00013972,2]
[331795511,1720765897304,-164.833302,0.00013972,2]
[331795512,1720765897313,-597.81,0.00013972,2]
[331795513,1720765897322,-164.833302,0.00013972,2]
[331795514,1720765897330,-665.34,0.00013972,2]
[331795515,1720765897340,-879.54,0.00013972,2]
[331795516,1720765897349,-151.0,0.00013972,2]
[331795517,1720765897358,-500.0,0.00013972,2]
[331795518,1720765897367,-500.0,0.00013972,2]
[331795519,1720765897377,-1042.83,0.00013972,2]
[331795520,1720765897385,-500.0,0.00013972,2]
[331795521,1720765897394,-500.0,0.00013972,2]
[331795522,1720765897404,-500.0,0.00013972,2]
[331795523,1720765897413,-500.0,0.00013972,2]
[331795524,1720765897422,-151.0,0.00013972,2]
[331795525,1720765897431,-151.0,0.00013972,2]
[331795526,1720765897441,-151.0,0.00013972,2]
[331795527,1720765897451,-801.96,0.00013972,2]
[331795528,1720765897460,-676.83,0.00013972,2]
[331795529,1720765897470,-576.46,0.00013972,2]
[331795530,1720765897479,-679.71,0.00013972,2]
[331795531,1720765897488,-500.0,0.00013972,2]
[331795532,1720765897498,-699.82,0.00013972,2]
[331795533,1720765897511,-620.46193011,0.00013972,2]
[331795534,1720765897520,-500.0,0.00013972,2]
[331795535,1720765897530,-500.0,0.00013972,2]
[331795536,1720765897540,-500.0,0.00013972,2]
[331795537,1720765897550,-902.64,0.00013972,2]
[331795538,1720765897562,-500.0,0.00013972,2]
[331795539,1720765897571,-500.0,0.00013972,2]
[331795540,1720765897585,-969.66,0.00013972,2]
[331795541,1720765897596,-1386.9,0.00013972,2]
[331795542,1720765897606,-500.0,0.00013972,2]
[331795543,1720765897618,-500.0,0.00013972,2]
[331795544,1720765897629,-500.0,0.00013972,2]
[331795545,1720765897640,-500.0,0.00013972,2]
[331795546,1720765897650,-500.0,0.00013972,2]
[331795547,1720765897661,-500.0,0.00013972,2]
[331795548,1720765897671,-500.0,0.00013972,2]
[331795549,1720765897682,-500.0,0.00013972,2]
[331795550,1720765897691,-832.86,0.00013972,2]
[331795551,1720765897701,-1142.56,0.00013972,2]
[331795552,1720765897711,-584.03,0.00013972,2]
[331795553,1720765897723,-151.0,0.00013972,2]
[331795554,1720765897736,-184.877998,0.00013972,2]
[331795555,1720765897747,-678.02,0.00013972,2]
[331795556,1720765897758,-980.86,0.00013972,2]
[331795557,1720765897767,-965.58,0.00013972,2]
[331795558,1720765897777,-184.877998,0.00013972,2]
[331795559,1720765897786,-500.0,0.00013972,2]
[331795560,1720765897796,-500.0,0.00013972,2]
[331795561,1720765897806,-500.0,0.00013972,2]
[331795562,1720765897816,-500.0,0.00013972,2]
[331795563,1720765897826,-500.0,0.00013972,2]
[331795564,1720765897836,-625.22,0.00013972,2]
[331795565,1720765897846,-500.0,0.00013972,2]
[331795566,1720765897855,-500.0,0.00013972,2]
[331795567,1720765897866,-1043.71,0.00013972,2]
[331795568,1720765897876,-500.0,0.00013972,2]
[331795569,1720765897886,-414.01,0.00013972,2]
[331795570,1720765897896,-1095.96,0.00013972,2]
[331795571,1720765897906,-663.07,0.00013972,2]
[331795572,1720765897916,-500.0,0.00013972,2]
[331795573,1720765897926,-500.0,0.00013972,2]
[331795574,1720765897936,-1311.76,0.00013972,2]
[331795575,1720765897946,-500.0,0.00013972,2]
[331795576,1720765897958,-1064.74,0.00013972,2]
[331795577,1720765897968,-500.0,0.00013972,2]
[331795578,1720765897978,-500.0,0.00013972,2]
[331795579,1720765897988,-500.0,0.00013972,2]
[331795580,1720765897998,-1453.03,0.00013972,2]
[331795581,1720765898007,-500.0,0.00013972,2]
[331795582,1720765898017,-506.91,0.00013972,2]
[331795583,1720765898027,-625.46,0.00013972,2]
[331795584,1720765898036,-651.67,0.00013972,2]
[331795585,1720765898046,-1301.15,0.00013972,2]
[331795586,1720765898056,-500.0,0.00013972,2]
[331795587,1720765898066,-500.0,0.00013972,2]
[331795588,1720765898075,-500.0,0.00013972,2]
[331795589,1720765898085,-500.0,0.00013972,2]
[331795590,1720765898095,-618.62,0.00013972,2]
[331795591,1720765898104,-500.0,0.00013972,2]
[331795592,1720765898114,-1182.83,0.00013972,2]
[331795593,1720765898123,-871.11,0.00013972,2]
[331795594,1720765898133,-500.0,0.00013972,2]
[331795595,1720765898143,-500.0,0.00013972,2]
[331795596,1720765898152,-886.56,0.00013972,2]
[331795597,1720765898162,-500.0,0.00013972,2]
[331795598,1720765898171,-1085.4,0.00013972,2]
[331795599,1720765898181,-191.349304,0.00013972,2]
[331795600,1720765898192,-500.0,0.00013972,2]
[331795601,1720765898201,-184.427444,0.00013972,2]
[331795602,1720765898211,-896.6,0.00013972,2]
[331795603,1720765898220,-830.96,0.00013972,2]
[331795604,1720765898230,-500.0,0.00013972,2]
[331795605,1720765898240,-674.06,0.00013972,2]
[331795606,1720765898250,-1895.01,0.00013972,2]
[331795607,1720765898260,-184.427444,0.00013972,2]
[331795608,1720765898270,-191.349304,0.00013972,2]
[331795609,1720765898279,-1172.9,0.00013972,2]
[331795610,1720765898289,-1660.92,0.00013972,2]
[331795611,1720765898299,-644.5,0.00013972,2]
[331795612,1720765898308,-500.0,0.00013972,2]
[331795613,1720765898318,-315.615147,0.00013972,2]
[331795614,1720765898327,-1467.31,0.00013972,2]
[331795615,1720765898337,-500.0,0.00013972,2]
[331795616,1720765898347,-500.0,0.00013972,2]
[331795617,1720765898356,-315.615147,0.00013972,2]
[331795618,1720765898366,-981.49,0.00013972,2]
[331795619,1720765898376,-500.0,0.00013972,2]
[331795620,1720765898386,-500.0,0.00013972,2]
[331795621,1720765898395,-1112.45,0.00013972,2]
[331795622,1720765898405,-721.53,0.00013972,2]
[331795623,1720765898414,-500.0,0.00013972,2]
[331795624,1720765898424,-500.0,0.00013972,2]
[331795625,1720765898433,-773.09,0.00013972,2]
[331795626,1720765898444,-500.0,0.00013972,2]
[331795627,1720765898454,-500.0,0.00013972,2]
[331795628,1720765898463,-750.22,0.00013972,2]
[331795629,1720765898472,-500.0,0.00013972,2]
[331795630,1720765898482,-500.0,0.00013972,2]
[331795631,1720765898492,-617.12,0.00013972,2]
[331795632,1720765898506,-1485.55,0.00013972,2]
[331795633,1720765898516,-500.0,0.00013972,2]